bitfinex/quotes_BTCUSD_20230103
["timestamp","ask_amount","ask_price","bid_price","bid_amount"]
[1672764131859,1.47191091,16667.0,16666.0,1.2195]
[1672764132111,0.82311087,16667.0,16666.0,1.2195]
[1672764132360,0.82911112,16667.0,16666.0,1.4592]
[1672764132612,1.467493,16667.0,16666.0,1.4592]
[1672764132915,1.86304198,16667.0,16666.0,1.4592]
[1672764133136,1.49798095,16667.0,16666.0,1.4592]
[1672764133390,1.86300203,16667.0,16666.0,1.4592]
[1672764133628,1.2066194,16667.0,16666.0,1.4592]
[1672764133881,1.2186199,16667.0,16666.0,1.4592]
[1672764134129,1.21261965,16667.0,16666.0,1.7592]
[1672764134351,1.2186199,16667.0,16666.0,1.7592]
[1672764134609,1.4758637,16667.0,16666.0,1.7592]
[1672764134877,1.48186395,16667.0,16666.0,1.7592]
[1672764135127,1.4758637,16667.0,16666.0,1.4592]
[1672764135342,1.48186395,16667.0,16666.0,1.4592]
[1672764135600,1.2066194,16667.0,16666.0,1.4592]
[1672764136393,1.2066194,16667.0,16666.0,1.80417871]
[1672764136394,0.64929122,16667.0,16666.0,1.80417871]
[1672764136643,0.82280573,16667.0,16666.0,2.10417871]
[1672764136900,0.46978515,16667.0,16666.0,2.10417871]
[1672764137161,0.4637849,16667.0,16666.0,2.70420271]
[1672764137445,0.46978515,16667.0,16666.0,3.75644571]
[1672764137713,0.19451501,16667.0,16666.0,4.36496971]
[1672764137990,0.19451501,16667.0,16666.0,5.05154212]
[1672764137991,0.20051526,16667.0,16666.0,5.05154212]
[1672764138500,0.21251576,16667.0,16666.0,5.05154212]
[1672764138735,0.20051526,16667.0,16666.0,5.05154212]
[1672764138993,0.20651551,16667.0,16666.0,5.05154212]
[1672764139282,0.20051526,16667.0,16666.0,4.43800112]
[1672764139511,0.20651551,16667.0,16666.0,4.43800112]
[1672764139778,0.20051526,16667.0,16666.0,5.05154212]
[1672764140023,0.20651551,16667.0,16666.0,5.05154212]
[1672764140282,0.19451501,16667.0,16666.0,4.43800112]
[1672764140580,0.20651551,16667.0,16666.0,4.43800112]
[1672764140799,0.46978515,16667.0,16666.0,4.43800112]
[1672764141091,0.48178565,16667.0,16666.0,4.43800112]
[1672764141349,0.46978515,16667.0,16666.0,4.43800112]
[1672764141611,0.48178565,16667.0,16666.0,4.43800112]
[1672764141864,0.46978515,16667.0,16666.0,4.43800112]
[1672764142120,0.48178565,16667.0,16666.0,4.43800112]
[1672764142451,0.46978515,16667.0,16666.0,4.43800112]
[1672764143405,0.4637849,16667.0,16666.0,4.43800112]
[1672764143663,0.46978515,16667.0,16666.0,4.43800112]
[1672764143918,0.82880598,16667.0,16666.0,2.63792912]
[1672764144175,0.48178565,16667.0,16666.0,4.43800112]
[1672764144466,0.46978515,16667.0,16666.0,4.43800112]
[1672764144721,0.4637849,16667.0,16666.0,4.43800112]
[1672764144987,0.4637849,16667.0,16666.0,3.83797712]
[1672764145208,0.46978515,16667.0,16666.0,3.83797712]
[1672764146804,0.4637849,16667.0,16666.0,3.83797712]
[1672764147333,0.46978515,16667.0,16666.0,3.43797712]
[1672764148111,0.4757854,16667.0,16666.0,3.43797712]
[1672764148387,0.46978515,16667.0,16666.0,2.73797712]
[1672764148590,0.4757854,16667.0,16666.0,2.73797712]
[1672764148875,0.4637849,16667.0,16666.0,2.73797712]
[1672764149112,0.46978515,16667.0,16666.0,2.73797712]
[1672764149368,0.46978515,16667.0,16666.0,3.43797712]
[1672764149622,0.4757854,16667.0,16666.0,3.43797712]
[1672764149876,0.4637849,16667.0,16666.0,3.43797712]
[1672764150159,0.46978515,16667.0,16666.0,3.43797712]
[1672764150422,0.4637849,16667.0,16666.0,3.43797712]
[1672764150679,0.46978515,16667.0,16666.0,3.43797712]
[1672764151441,0.4637849,16667.0,16666.0,3.43797712]
[1672764151689,0.46978515,16667.0,16666.0,3.43797712]
[1672764152200,0.4757854,16667.0,16666.0,3.43797712]
[1672764152449,0.4637849,16667.0,16666.0,3.43797712]
[1672764152702,0.46978515,16667.0,16666.0,3.43797712]
[1672764153250,0.4757854,16667.0,16666.0,3.43797712]
[1672764153564,0.82280573,16667.0,16666.0,3.43797712]
[1672764153814,0.64929122,16667.0,16666.0,3.43797712]
[1672764154371,0.64329097,16667.0,16666.0,3.43797712]
[1672764155600,0.82307092,16667.0,16666.0,2.08573412]
[1672764155601,1.34840438,16667.0,16666.0,1.18153141]
[1672764155858,2.18478347,16667.0,16666.0,1.17303141]
[1672764156114,2.68236289,16667.0,16666.0,1.17303141]
[1672764156365,2.17878322,16667.0,16666.0,1.17303141]
[1672764156618,3.27635064,16667.0,16666.0,1.17303141]
[1672764156877,2.77877122,16667.0,16666.0,1.17303141]
[1672764157134,2.77868752,16667.0,16666.0,1.17303141]
[1672764157870,2.78468777,16667.0,16666.0,0.47303141]
[1672764158381,2.77868752,16667.0,16666.0,0.47303141]
[1672764159419,2.78468777,16667.0,16666.0,0.47303141]
[1672764159994,2.77868752,16667.0,16666.0,0.47303141]
[1672764160461,2.17869952,16667.0,16666.0,0.47303141]
[1672764160979,2.18469977,16667.0,16666.0,0.47303141]
[1672764161463,2.17869952,16667.0,16666.0,0.47303141]
[1672764161977,2.18469977,16667.0,16666.0,0.47303141]
[1672764162521,2.17869952,16667.0,16666.0,0.47303141]
[1672764162753,2.17869952,16667.0,16666.0,0.77303141]
[1672764163282,2.17869952,16667.0,16666.0,1.47303141]
[1672764164580,2.18469977,16667.0,16666.0,1.47303141]
[1672764165624,2.17869952,16667.0,16666.0,1.47303141]
[1672764165859,3.31769757,16667.0,16666.0,0.77303141]
[1672764166625,3.80636069,16667.0,16666.0,0.77303141]
[1672764166895,3.90336069,16667.0,16666.0,0.77303141]
[1672764167137,3.80636069,16667.0,16666.0,0.77303141]
[1672764167369,3.80636069,16667.0,16666.0,0.07303141]
[1672764167868,4.40634869,16667.0,16666.0,0.07303141]
[1672764168129,3.93936069,16667.0,16666.0,0.07303141]
[1672764168638,3.94536094,16667.0,16666.0,0.07303141]
[1672764169131,3.93936069,16667.0,16666.0,0.07303141]
[1672764171258,3.94536094,16667.0,16666.0,0.07303141]
[1672764171524,3.45378177,16667.0,16666.0,0.07303141]
[1672764171788,3.44178127,16667.0,16666.0,0.07303141]
[1672764172050,3.44778152,16667.0,16666.0,0.07303141]
[1672764172297,2.90877147,16667.0,16666.0,0.07303141]
[1672764172554,2.91477172,16667.0,16666.0,0.07303141]
[1672764172765,2.90277122,16667.0,16666.0,0.07303141]
[1672764173058,2.90877147,16667.0,16666.0,0.07303141]
[1672764173338,2.90277122,16667.0,16666.0,0.07303141]
[1672764173565,2.90877147,16667.0,16666.0,0.07303141]
[1672764173852,2.90277122,16667.0,16666.0,0.07303141]
[1672764174183,2.90877147,16667.0,16666.0,0.07303141]
[1672764174562,2.91477172,16667.0,16666.0,0.07303141]
[1672764174808,2.90277122,16667.0,16666.0,0.07303141]
[1672764175068,2.90877147,16667.0,16666.0,0.07303141]
[1672764175611,2.91477172,16667.0,16666.0,0.07303141]
[1672764175859,2.90277122,16667.0,16666.0,0.07303141]
[1672764176110,3.45378177,16667.0,16666.0,0.07303141]
[1672764176329,3.44778152,16667.0,16666.0,0.07303141]
[1672764176846,2.90277122,16667.0,16666.0,0.07303141]
[1672764177357,2.90877147,16667.0,16666.0,0.07303141]
[1672764177614,2.91477172,16667.0,16666.0,0.07303141]
[1672764177835,2.90277122,16667.0,16666.0,0.07303141]
[1672764179181,2.90877147,16667.0,16666.0,0.07303141]
[1672764179376,2.90277122,16667.0,16666.0,0.07303141]
[1672764180142,2.90877147,16667.0,16666.0,0.07303141]
[1672764180389,3.44178127,16667.0,16666.0,0.25313141]
[1672764180647,3.44178127,16667.0,16666.0,0.25303493]
[1672764180923,2.90877147,16667.0,16666.0,0.25303493]
[1672764181146,2.83166352,16667.0,16666.0,0.25303493]
[1672764181410,2.82566327,16667.0,16666.0,0.25303493]
[1672764181876,2.83166352,16667.0,16666.0,0.25303493]
[1672764182277,2.83766377,16667.0,16666.0,1.02432943]
[1672764182530,2.28665322,16667.0,16666.0,1.02432943]
[1672764182790,1.24408245,16667.0,16666.0,1.20442943]
[1672764183046,1.2380822,16667.0,16666.0,1.90442943]
[1672764183297,1.2500827,16667.0,16666.0,1.90442943]
[1672764183553,1.2380822,16667.0,16666.0,1.90442943]
[1672764183803,1.24408245,16667.0,16666.0,1.90442943]
[1672764184055,1.68091952,16667.0,16666.0,1.90442943]
[1672764184337,1.68691977,16667.0,16666.0,1.90442943]
[1672764184573,1.68091952,16667.0,16666.0,1.90442943]
[1672764184850,1.69292002,16667.0,16666.0,1.90442943]
[1672764185076,1.68691977,16667.0,16666.0,1.90442943]
[1672764185323,1.69892027,16667.0,16666.0,1.90442943]
[1672764185565,1.2380822,16667.0,16666.0,1.90442943]
[1672764185813,1.2500827,16667.0,16666.0,1.90442943]
[1672764186067,1.2380822,16667.0,16666.0,1.90442943]
[1672764186313,1.6930118,16667.0,16666.0,1.90442943]
[1672764186564,1.6810113,16667.0,16666.0,1.90442943]
[1672764186808,1.68701155,16667.0,16666.0,1.90442943]
[1672764187053,1.6810113,16667.0,16666.0,1.90442943]
[1672764187338,1.68701155,16667.0,16666.0,1.90442943]
[1672764187593,1.6810113,16667.0,16666.0,1.90442943]
[1672764187860,1.68701155,16667.0,16666.0,1.90442943]
[1672764188370,1.6930118,16667.0,16666.0,1.90442943]
[1672764188653,1.6810113,16667.0,16666.0,1.90442943]
[1672764188882,1.6930118,16667.0,16666.0,1.90442943]
[1672764189134,1.68701155,16667.0,16666.0,1.20442943]
[1672764189388,1.6930118,16667.0,16666.0,1.20442943]
[1672764189638,1.60969372,16667.0,16666.0,1.20442943]
[1672764189901,1.62169422,16667.0,16666.0,1.90442943]
[1672764190156,1.61569397,16667.0,16666.0,1.90442943]
[1672764190415,1.62769447,16667.0,16666.0,1.90442943]
[1672764190628,1.61569397,16667.0,16666.0,1.90442943]
[1672764190853,1.62169422,16667.0,16666.0,1.90442943]
[1672764191119,1.60969372,16667.0,16666.0,1.90442943]
[1672764191373,1.61569397,16667.0,16666.0,1.90442943]
[1672764191624,1.60969372,16667.0,16666.0,1.90442943]
[1672764191873,1.61569397,16667.0,16666.0,1.90442943]
[1672764192122,1.2380822,16667.0,16666.0,1.90442943]
[1672764192381,1.2380822,16667.0,16666.0,2.55623711]
[1672764192609,1.687288,16667.0,16666.0,3.15626111]
[1672764192862,1.687288,16667.0,16666.0,3.75628511]
[1672764193126,2.04663042,16667.0,16666.0,4.15628511]
[1672764193377,1.22264437,16667.0,16666.0,5.55775011]
[1672764193908,1.4083364,16667.0,16666.0,5.55775011]
[1672764194160,1.66590469,16667.0,16666.0,5.55775011]
[1672764194435,1.67190494,16667.0,16666.0,5.55775011]
[1672764194632,2.04325305,16667.0,16666.0,4.34418511]
[1672764194885,1.39633524,16667.0,16666.0,5.50822659]
[1672764195157,1.03699282,16667.0,16666.0,6.59071521]
[1672764195667,1.04299307,16667.0,16666.0,6.59071521]
[1672764196697,0.77347446,16667.0,16666.0,6.28514243]
[1672764197194,0.76747421,16667.0,16666.0,6.28514243]
[1672764197705,0.76747421,16667.0,16666.0,6.5762391]
[1672764198664,0.77347446,16667.0,16666.0,6.5762391]
[1672764198918,0.59378793,16667.0,16666.0,6.5762391]
[1672764199167,0.77347446,16667.0,16666.0,6.5762391]
[1672764199408,0.59378793,16667.0,16666.0,6.28514243]
[1672764199900,0.59378793,16667.0,16666.0,6.60857314]
[1672764200153,0.59378793,16667.0,16666.0,5.20494243]
[1672764200408,0.59378793,16667.0,16666.0,5.47466331]
[1672764200923,0.59378793,16667.0,16666.0,5.20494243]
[1672764201172,0.59978818,16667.0,16666.0,5.57428938]
[1672764201422,0.59378793,16667.0,16666.0,5.57428938]
[1672764202665,0.58778768,16667.0,16666.0,5.57428938]
[1672764203150,0.59978818,16667.0,16666.0,5.57428938]
[1672764203409,0.59378793,16667.0,16666.0,5.57428938]
[1672764203674,0.59978818,16667.0,16666.0,5.57428938]
[1672764203949,0.58778768,16667.0,16666.0,4.87428938]
[1672764204731,0.59378793,16667.0,16666.0,4.87428938]
[1672764204978,0.59378793,16667.0,16666.0,5.57428938]
[1672764206541,0.59378793,16667.0,16666.0,5.58901781]
[1672764207283,0.59378793,16667.0,16666.0,4.98899381]
[1672764208307,0.58778768,16667.0,16666.0,4.98899381]
[1672764208829,0.59378793,16667.0,16666.0,4.98899381]
[1672764209887,0.58778768,16667.0,16666.0,4.98899381]
[1672764210154,0.58778768,16667.0,16666.0,6.06853381]
[1672764210408,0.59378793,16667.0,16666.0,4.98923381]
[1672764211168,0.59299785,16667.0,16666.0,4.98914406]
[1672764211401,0.5869976,16667.0,16666.0,4.98914406]
[1672764211884,0.59299785,16667.0,16666.0,4.98914406]
[1672764212422,0.5869976,16667.0,16666.0,4.98914406]
[1672764214185,0.5869976,16667.0,16666.0,4.60506868]
[1672764214432,0.5869976,16667.0,16666.0,4.98174971]
[1672764215383,0.59299785,16667.0,16666.0,4.98174971]
[1672764215640,0.5869976,16667.0,16666.0,4.98174971]
[1672764215900,0.77868463,16667.0,16666.0,4.98174971]
[1672764216161,0.77268438,16667.0,16666.0,4.98174971]
[1672764216652,0.76668413,16667.0,16666.0,4.98174971]
[1672764216901,0.77868463,16667.0,16666.0,4.98174971]
[1672764217127,0.77268438,16667.0,16666.0,4.98174971]
[1672764217385,0.78468488,16667.0,16666.0,4.98174971]
[1672764217608,0.77268438,16667.0,16666.0,4.98174971]
[1672764217854,0.77868463,16667.0,16666.0,4.98174971]
[1672764218114,0.77268438,16667.0,16666.0,4.98174971]
[1672764218344,0.77868463,16667.0,16666.0,4.98174971]
[1672764218580,0.77268438,16667.0,16666.0,4.98174971]
[1672764219058,0.76668413,16667.0,16666.0,4.98174971]
[1672764219565,0.77268438,16667.0,16666.0,4.98174971]
[1672764220602,0.76668413,16667.0,16666.0,4.98174971]
[1672764221092,0.77268438,16667.0,16666.0,4.98174971]
[1672764221604,0.3178967,16667.0,16666.0,4.28174971]
[1672764222643,0.3178967,16667.0,16666.0,4.36820871]
[1672764222907,0.3178967,16667.0,16666.0,4.98174971]
[1672764223415,0.59341556,16667.0,16666.0,4.98174971]
[1672764223751,0.58741531,16667.0,16666.0,4.36820871]
[1672764223934,0.59341556,16667.0,16666.0,4.36820871]
[1672764224196,0.58741531,16667.0,16666.0,4.36820871]
[1672764224453,0.59341556,16667.0,16666.0,4.36820871]
[1672764224701,0.58741531,16667.0,16666.0,4.36820871]
[1672764224927,0.95275798,16667.0,16666.0,4.36820871]
[1672764225208,0.58741531,16667.0,16666.0,4.36820871]
[1672764225466,0.59341556,16667.0,16666.0,4.36820871]
[1672764225732,0.58741531,16667.0,16666.0,4.36820871]
[1672764225984,0.59341556,16667.0,16666.0,4.36820871]
[1672764226245,0.58741531,16667.0,16666.0,4.36820871]
[1672764226508,0.59341556,16667.0,16666.0,4.98174971]
[1672764226755,0.58741531,16667.0,16666.0,4.98174971]
[1672764226963,0.59341556,16667.0,16666.0,4.98174971]
[1672764227750,0.3178967,16667.0,16666.0,4.98174971]
[1672764228005,0.32389695,16667.0,16666.0,4.98174971]
[1672764228270,0.3178967,16667.0,16666.0,4.98174971]
[1672764228530,0.32389695,16667.0,16666.0,4.28174971]
[1672764228749,0.32389695,16667.0,16666.0,3.66820871]
[1672764229042,0.59941581,16667.0,16666.0,3.66820871]
[1672764229283,0.58741531,16667.0,16666.0,3.66820871]
[1672764229537,0.32389695,16667.0,16666.0,4.36820871]
[1672764229790,0.3178967,16667.0,16666.0,4.98174971]
[1672764230057,0.32389695,16667.0,16666.0,4.98174971]
[1672764230314,0.3178967,16667.0,16666.0,4.98174971]
[1672764230591,0.59341556,16667.0,16666.0,4.98174971]
[1672764231092,0.59941581,16667.0,16666.0,4.36820871]
[1672764231370,0.94675773,16667.0,16666.0,4.36820871]
[1672764231579,0.59341556,16667.0,16666.0,4.98174971]
[1672764231844,0.58741531,16667.0,16666.0,4.36820871]
[1672764232088,0.59341556,16667.0,16666.0,4.36820871]
[1672764232344,0.58741531,16667.0,16666.0,4.36820871]
[1672764232599,0.31779568,16667.0,16666.0,4.36820871]
[1672764232852,0.59331454,16667.0,16666.0,4.36820871]
[1672764233131,0.59931479,16667.0,16666.0,4.36820871]
[1672764233395,0.58731429,16667.0,16666.0,4.36820871]
[1672764233652,0.59331454,16667.0,16666.0,4.36820871]
[1672764233906,0.58731429,16667.0,16666.0,4.36820871]
[1672764234158,0.59331454,16667.0,16666.0,4.36820871]
[1672764234686,0.59931479,16667.0,16666.0,4.36820871]
[1672764234936,0.94665671,16667.0,16666.0,4.36820871]
[1672764235273,0.95265696,16667.0,16666.0,4.36820871]
[1672764235439,0.76697018,16667.0,16666.0,4.36820871]
[1672764235707,0.77297043,16667.0,16666.0,3.66820871]
[1672764235952,1.59447408,16667.0,16666.0,4.36820871]
[1672764236197,1.60047433,16667.0,16666.0,4.36820871]
[1672764236494,1.59447408,16667.0,16666.0,4.36820871]
[1672764236713,0.95265762,16667.0,16666.0,4.36820871]
[1672764236970,1.59315735,16667.0,16666.0,4.36820871]
[1672764237228,0.95265762,16667.0,16666.0,4.36820871]
[1672764237490,0.94665737,16667.0,16666.0,4.36820871]
[1672764237742,0.95265762,16667.0,16666.0,4.36820871]
[1672764238008,1.21603637,16667.0,16666.0,4.36820871]
[1672764238291,0.77883107,16667.0,16666.0,4.36820871]
[1672764238527,0.77283082,16667.0,16666.0,4.36820871]
[1672764238781,0.77883107,16667.0,16666.0,4.36820871]
[1672764239059,0.76683057,16667.0,16666.0,4.36820871]
[1672764239304,1.22203662,16667.0,16666.0,4.36820871]
[1672764239593,0.76683057,16667.0,16666.0,4.36820871]
[1672764240647,0.76683057,16667.0,16666.0,4.18810871]
[1672764241174,1.21603637,16667.0,16666.0,4.18810871]
[1672764241425,0.76683057,16667.0,16666.0,4.18810871]
[1672764241687,1.59315018,16667.0,16666.0,4.18810871]
[1672764241944,0.94665737,16667.0,16666.0,3.48810871]
[1672764242218,0.7668439,16667.0,16666.0,3.48810871]
[1672764243068,0.94665737,16667.0,16666.0,4.18810871]
[1672764243242,0.76688879,16667.0,16666.0,4.18810871]
[1672764243508,1.21609459,16667.0,16666.0,4.18810871]
[1672764243762,0.94665737,16667.0,16666.0,4.18810871]
[1672764244286,1.21609229,16667.0,16666.0,4.18810871]
[1672764244555,0.94665737,16667.0,16666.0,4.18810871]
[1672764244836,0.95265762,16667.0,16666.0,4.18810871]
[1672764245100,1.59279577,16667.0,16666.0,4.18810871]
[1672764245367,1.59879602,16667.0,16666.0,4.18810871]
[1672764245640,1.59279577,16667.0,16666.0,4.18810871]
[1672764245895,0.77290364,16667.0,16666.0,4.18810871]
[1672764246157,0.76690339,16667.0,16666.0,4.18810871]
[1672764246409,0.77290364,16667.0,16666.0,4.18810871]
[1672764246656,0.94665737,16667.0,16666.0,4.18810871]
[1672764246971,1.59908371,16667.0,16666.0,4.18810871]
[1672764247190,1.59308346,16667.0,16666.0,4.18810871]
[1672764247957,1.60508396,16667.0,16666.0,4.18810871]
[1672764248203,2.21520171,16667.0,16666.0,4.18810871]
[1672764248478,2.20920146,16667.0,16666.0,4.18810871]
[1672764248715,1.59308346,16667.0,16666.0,4.18810871]
[1672764250006,0.76688399,16667.0,16666.0,4.18810871]
[1672764250483,0.77888449,16667.0,16666.0,4.18810871]
[1672764250832,0.77288424,16667.0,16666.0,4.18810871]
[1672764251229,0.76688399,16667.0,16666.0,4.18810871]
[1672764251476,0.77888449,16667.0,16666.0,4.18810871]
[1672764251741,0.77288424,16667.0,16666.0,4.18810871]
[1672764251996,0.77888449,16667.0,16666.0,4.18810871]
[1672764252248,0.76688399,16667.0,16666.0,4.18810871]
[1672764252500,0.77288424,16667.0,16666.0,4.18810871]
[1672764252752,0.76688399,16667.0,16666.0,4.18810871]
[1672764253001,0.77288424,16667.0,16666.0,4.18800511]
[1672764253276,0.76688399,16667.0,16666.0,4.18800511]
[1672764253525,0.77288424,16667.0,16666.0,4.18800511]
[1672764253786,0.76688399,16667.0,16666.0,4.18800511]
[1672764254043,0.77288424,16667.0,16666.0,4.18800511]
[1672764254331,0.76688399,16667.0,16666.0,4.18800511]
[1672764255091,0.58716456,16667.0,16666.0,4.18800511]
[1672764255344,0.94650698,16667.0,16666.0,4.18800511]
[1672764255555,0.58716456,16667.0,16666.0,4.18800511]
[1672764257111,0.77288424,16667.0,16666.0,4.18800511]
[1672764257372,0.76688399,16667.0,16666.0,4.18800511]
[1672764257647,1.59121105,16667.0,16666.0,4.18800511]
[1672764258150,2.20732905,16667.0,16666.0,4.18800511]
[1672764258669,2.20732905,16667.0,16666.0,3.88800511]
[1672764258962,1.59121105,16667.0,16666.0,3.88800511]
[1672764259200,1.59121105,16667.0,16666.0,4.18800511]
[1672764260776,2.26538648,16667.0,16666.0,0.77274158]
[1672764261046,2.84924448,16667.0,16666.0,0.77274158]
[1672764261269,3.47136273,16667.0,16666.0,0.77274158]
[1672764261524,4.01037278,16667.0,16666.0,0.77274158]
[1672764262032,3.39425478,16667.0,16666.0,1.07274158]
[1672764262295,4.00437253,16667.0,16666.0,1.07274158]
[1672764262552,3.46536248,16667.0,16666.0,1.07274158]
[1672764262816,2.96778306,16667.0,16666.0,1.07274158]
[1672764263325,2.89067511,16667.0,16666.0,1.07274158]
[1672764263577,3.50679311,16667.0,16666.0,1.07274158]
[1672764264087,2.97378331,16667.0,16666.0,1.07274158]
[1672764264339,2.96778306,16667.0,16666.0,1.07274158]
[1672764264829,2.35166506,16667.0,16666.0,1.07274158]
[1672764265078,2.59875683,16667.0,16666.0,1.07274158]
[1672764265856,1.98263883,16667.0,16666.0,1.07274158]
[1672764266879,1.98863908,16667.0,16666.0,1.07274158]
[1672764267387,2.59875683,16667.0,16666.0,1.07274158]
[1672764267887,2.60475708,16667.0,16666.0,1.07274158]
[1672764268401,1.98263883,16667.0,16666.0,0.37274158]
[1672764268651,2.59875683,16667.0,16666.0,0.37274158]
[1672764269196,2.59875683,16667.0,16666.0,0.84515605]
[1672764269441,2.60475708,16667.0,16666.0,0.37274158]
[1672764269702,1.99463933,16667.0,16666.0,1.07274158]
[1672764269985,1.98263883,16667.0,16666.0,1.07274158]
[1672764270197,1.98863908,16667.0,16666.0,1.07274158]
[1672764270449,1.98263883,16667.0,16666.0,1.07274158]
[1672764270713,1.98863908,16667.0,16666.0,1.07274158]
[1672764270970,2.48021825,16667.0,16666.0,1.07274158]
[1672764271222,1.98863908,16667.0,16666.0,1.07274158]
[1672764271473,1.98263883,16667.0,16666.0,1.07274158]
[1672764271729,1.98863908,16667.0,16666.0,1.07274158]
[1672764271995,1.98263883,16667.0,16666.0,1.07274158]
[1672764272502,1.98863908,16667.0,16666.0,1.07274158]
[1672764272767,1.99463933,16667.0,16666.0,1.07274158]
[1672764273042,1.98263883,16667.0,16666.0,1.54528422]
[1672764273255,1.98863908,16667.0,16666.0,1.07264129]
[1672764273884,1.99463933,16667.0,16666.0,1.07264129]
[1672764274068,2.52164888,16667.0,16666.0,1.07264129]
[1672764274337,2.52764913,16667.0,16666.0,1.07264129]
[1672764274628,1.98263883,16667.0,16666.0,1.07264129]
[1672764274862,1.98863908,16667.0,16666.0,0.37264129]
[1672764275156,2.59875683,16667.0,16666.0,0.37264129]
[1672764275372,2.60475708,16667.0,16666.0,0.37264129]
[1672764275622,2.43094103,16667.0,16666.0,0.7436672]
[1672764275876,1.23696856,16667.0,16666.0,1.21631633]
[1672764276132,1.23096831,16667.0,16666.0,1.21631633]
[1672764276394,1.23696856,16667.0,16666.0,1.91631633]
[1672764276650,1.23096831,16667.0,16666.0,1.91631633]
[1672764276934,1.23696856,16667.0,16666.0,1.91631633]
[1672764277166,1.23096831,16667.0,16666.0,1.91631633]
[1672764277423,1.24296881,16667.0,16666.0,1.91631633]
[1672764277714,1.23696856,16667.0,16666.0,1.91631633]
[1672764277943,1.23096831,16667.0,16666.0,1.91631633]
[1672764278965,1.23696856,16667.0,16666.0,1.91631633]
[1672764279446,1.23096831,16667.0,16666.0,1.91631633]
[1672764279954,1.23696856,16667.0,16666.0,1.91631633]
[1672764280204,1.23096831,16667.0,16666.0,1.91631633]
[1672764280461,1.23696856,16667.0,16666.0,1.91631633]
[1672764280735,1.23096831,16667.0,16666.0,1.91631633]
[1672764280976,1.23696856,16667.0,16666.0,1.91631633]
[1672764281204,1.23096831,16667.0,16666.0,1.91631633]
[1672764281467,1.23696856,16667.0,16666.0,1.91631633]
[1672764281740,0.78266283,16667.0,16666.0,1.91631633]
[1672764282014,0.78266283,16667.0,16666.0,1.91630633]
[1672764282484,0.78866308,16667.0,16666.0,1.91630633]
[1672764282752,0.78266283,16667.0,16666.0,1.91630633]
[1672764282978,0.79466333,16667.0,16666.0,1.91630633]
[1672764283226,0.78866308,16667.0,16666.0,1.91630633]
[1672764283481,0.80066358,16667.0,16666.0,1.91630633]
[1672764283744,1.23697079,16667.0,16666.0,1.91630633]
[1672764283976,1.24297491,16667.0,16666.0,1.91630633]
[1672764284257,1.23097441,16667.0,16666.0,1.91630633]
[1672764284517,0.78866308,16667.0,16666.0,1.91630633]
[1672764284765,0.78266283,16667.0,16666.0,1.91630633]
[1672764285025,0.78866308,16667.0,16666.0,1.91621627]
[1672764285313,0.78266283,16667.0,16666.0,1.4436572]
[1672764285536,0.78866308,16667.0,16666.0,1.91621622]
[1672764285788,0.78266283,16667.0,16666.0,1.4436572]
[1672764286035,1.33367338,16667.0,16666.0,1.4436572]
[1672764286296,0.78866308,16667.0,16666.0,1.91617337]
[1672764286545,0.79466333,16667.0,16666.0,1.91617337]
[1672764286808,0.78266283,16667.0,16666.0,1.91617337]
[1672764287579,0.79466333,16667.0,16666.0,1.91617337]
[1672764287806,0.78866308,16667.0,16666.0,1.91617337]
[1672764288105,0.80066358,16667.0,16666.0,1.91617337]
[1672764288378,0.78866308,16667.0,16666.0,1.91617337]
[1672764288613,0.79466333,16667.0,16666.0,1.91617337]
[1672764288859,1.38865108,16667.0,16666.0,1.91617337]
[1672764289116,1.40065158,16667.0,16666.0,1.4436572]
[1672764289369,1.92766113,16667.0,16666.0,1.4436572]
[1672764289588,1.38865108,16667.0,16666.0,1.4436572]
[1672764289843,2.00476908,16667.0,16666.0,1.1436672]
[1672764290098,1.39465133,16667.0,16666.0,0.4436672]
[1672764290351,1.99876883,16667.0,16666.0,0.4436672]
[1672764290609,1.94869908,16667.0,16666.0,0.4436672]
[1672764290868,1.38265083,16667.0,16666.0,0.91612294]
[1672764291096,1.38865108,16667.0,16666.0,0.4436672]
[1672764291356,1.38265083,16667.0,16666.0,0.4436672]
[1672764291607,1.38865108,16667.0,16666.0,0.4436672]
[1672764291873,1.99876883,16667.0,16666.0,0.91612031]
[1672764292150,2.00476908,16667.0,16666.0,0.4436672]
[1672764292395,1.38265083,16667.0,16666.0,0.4436672]
[1672764292651,1.38865108,16667.0,16666.0,0.4436672]
[1672764292951,1.99876883,16667.0,16666.0,0.91607545]
[1672764293170,2.00476908,16667.0,16666.0,0.4436672]
[1672764293439,1.99876883,16667.0,16666.0,0.4436672]
[1672764293687,1.38865108,16667.0,16666.0,0.91611804]
[1672764293938,1.38265083,16667.0,16666.0,0.91611804]
[1672764294226,1.38865108,16667.0,16666.0,0.91611804]
[1672764294441,2.53777888,16667.0,16666.0,0.91611804]
[1672764294693,2.54377913,16667.0,16666.0,0.91611804]
[1672764294941,1.99876883,16667.0,16666.0,0.4436672]
[1672764295180,2.54377913,16667.0,16666.0,0.4436672]
[1672764295449,2.53777888,16667.0,16666.0,0.4435852]
[1672764295704,2.54377913,16667.0,16666.0,0.4435852]
[1672764295957,2.53777888,16667.0,16666.0,0.4435852]
[1672764296209,2.54377913,16667.0,16666.0,0.91558159]
[1672764296468,1.92166088,16667.0,16666.0,0.4435852]
[1672764296724,1.92166088,16667.0,16666.0,0.91557684]
[1672764296725,1.92766113,16667.0,16666.0,0.91557684]
[1672764296975,1.92166088,16667.0,16666.0,0.91557684]
[1672764297231,1.92166088,16667.0,16666.0,1.61557684]
[1672764297232,1.92766113,16667.0,16666.0,1.61557684]
[1672764297486,1.92166088,16667.0,16666.0,1.61557684]
[1672764297738,1.92766113,16667.0,16666.0,1.61557684]
[1672764298003,1.92166088,16667.0,16666.0,1.61557684]
[1672764298251,3.02522855,16667.0,16666.0,0.77255929]
[1672764298510,3.39078012,16667.0,16666.0,0.77255929]
[1672764298762,3.39678037,16667.0,16666.0,0.07255929]
[1672764299023,3.39078012,16667.0,16666.0,0.07255929]
[1672764299280,3.39678037,16667.0,16666.0,0.07255929]
[1672764299535,3.99465184,16667.0,16666.0,0.07255929]
[1672764299788,4.60064009,16667.0,16666.0,0.07255929]
[1672764300038,5.4296104,16667.0,16666.0,0.07255929]
[1672764300309,5.43561065,16667.0,16666.0,0.07255929]
[1672764300558,5.4296104,16667.0,16666.0,0.07255929]
[1672764300822,5.43561065,16667.0,16664.0,0.96419562]
[1672764301096,0.61949159,16665.0,16664.0,0.49235719]
[1672764301365,3.58386366,16665.0,16664.0,0.79235719]
[1672764301618,3.58386366,16665.0,16664.0,0.09235719]
[1672764302128,3.52779366,16665.0,16664.0,0.09335719]
[1672764302403,3.288156,16665.0,16664.0,0.09235719]
[1672764302804,3.306156,16665.0,16664.0,0.09535719]
[1672764302806,3.91221697,16665.0,16664.0,0.09535719]
[1672764303070,4.51008772,16665.0,16664.0,0.09535719]
[1672764303333,4.51608869,16665.0,16664.0,0.09535719]
[1672764303592,3.906216,16665.0,16664.0,0.09535719]
[1672764303845,4.4502304,16665.0,16664.0,0.09535719]
[1672764304107,4.44422943,16665.0,16664.0,0.09535719]
[1672764304366,4.4502304,16665.0,16664.0,0.09535719]
[1672764304620,4.44422943,16665.0,16664.0,0.09535719]